[Event "Nordstansblixten 2025"]
[Site "Nordstan, Göteborg, Sweden"]
[Date "2025.05.10"]
[Round "1.1"]
[White "Bjureblad, Martin"]
[Black "Wellevit, Tomas"]
[Result "0-1"]
[TimeControl "3 minutes + 2 seconds per move from move one"]
[BlackFideId "1731963"]
[WhiteElo "1645"]
[BlackElo "2131"]

1. e4 {[%clk 00:03:03]} c5 {[%clk 00:03:04]} 2. Nf3 {[%clk 00:03:02]} {[%emt
00:00:03]} Nc6 {[%clk 00:03:05]} {[%emt 00:00:02]} 3. d4 {[%clk 00:03:03]}
{[%emt 00:00:01]} cxd4 {[%clk 00:03:06]} {[%emt 00:00:01]} 4. Nxd4 {[%clk
00:03:02]} {[%emt 00:00:02]} e6 {[%clk 00:03:07]} {[%emt 00:00:02]} 5. Nb5
{[%clk 00:03:01]} {[%emt 00:00:02]} a6 {[%clk 00:03:09]} 6. Nd6+ {[%clk
00:03:00]} {[%emt 00:00:03]} Bxd6 {[%clk 00:03:09]} 7. Qxd6 {[%clk 00:03:00]}
{[%emt 00:00:02]} Nge7 {[%clk 00:03:10]} {[%emt 00:00:02]} 8. Qg3 {[%clk
00:03:00]} {[%emt 00:00:01]} O-O {[%clk 00:03:10]} {[%emt 00:00:02]} 9. Bd3
{[%clk 00:02:59]} {[%emt 00:00:03]} Qa5+ {[%clk 00:03:11]} {[%emt 00:00:01]} 10.
c3 {[%clk 00:02:58]} {[%emt 00:00:03]} Ne5 {[%clk 00:03:09]} {[%emt 00:00:04]}
11. Bc2 {[%clk 00:02:55]} {[%emt 00:00:05]} N5g6 {[%clk 00:02:56]} {[%emt
00:00:15]} 12. O-O {[%clk 00:02:53]} {[%emt 00:00:04]} f5 {[%clk 00:02:56]}
{[%emt 00:00:02]} 13. Be3 {[%clk 00:02:46]} {[%emt 00:00:10]} f4 {[%clk
00:02:55]} {[%emt 00:00:03]} 14. Qh3 {[%clk 00:02:32]} {[%emt 00:00:14]} fxe3
{[%clk 00:02:56]} {[%emt 00:00:03]} 15. Qxe3 {[%clk 00:02:30]} {[%emt
00:00:03]} b5 {[%clk 00:02:53]} {[%emt 00:00:06]} 16. Nd2 {[%clk 00:02:27]}
{[%emt 00:00:05]} Qc7 {[%clk 00:02:54]} {[%emt 00:00:02]} 17. Bb3 {[%clk
00:02:18]} {[%emt 00:00:10]} Bb7 {[%clk 00:02:54]} {[%emt 00:00:03]} 18. Rac1
{[%clk 00:02:14]} {[%emt 00:00:05]} Qc6 {[%clk 00:02:44]} {[%emt 00:00:13]} 19.
f4 {[%clk 00:02:04]} {[%emt 00:00:11]} Nf5 {[%clk 00:02:41]} {[%emt 00:00:05]}
20. Qf2 {[%clk 00:01:52]} {[%emt 00:00:12]} Nd6 {[%clk 00:02:31]} {[%emt
00:00:13]} 21. e5 {[%clk 00:01:41]} {[%emt 00:00:13]} Nf5 {[%clk 00:02:31]}
{[%emt 00:00:03]} 22. Rce1 {[%clk 00:01:22]} {[%emt 00:00:20]} Nxf4 {[%clk
00:02:27]} {[%emt 00:00:07]} 23. Ne4 {[%clk 00:00:10]} {[%emt 00:01:12]} Nh4
{[%clk 00:02:22]} {[%emt 00:00:09]} 24. Qxh4 {[%clk 00:00:04]} {[%emt
00:00:07]} Qb6+ {[%clk 00:02:14]} {[%emt 00:00:10]} 25. Kh1 {[%clk 00:00:03]}
{[%emt 00:00:03]} Nd3 {[%clk 00:02:11]} {[%emt 00:00:05]} 0-1

[ePGN "0.1;DGT LiveChess/2.2.7"]

[Event "Nordstansblixten 2025"]
[Site "Nordstan, Göteborg, Sweden"]
[Date "2025.05.10"]
[Round "1.3"]
[White "Sivarama, Saadhvik"]
[Black "Kadunic, Admir"]
[Result "1/2-1/2"]
[TimeControl "3 minutes + 2 seconds per move from move one"]
[WhiteElo "1595"]
[BlackElo "1852"]

1. e4 {[%clk 00:03:02]} {[%emt 00:00:01]} d6 {[%clk 00:03:03]} {[%emt
00:00:02]} 2. d4 {[%clk 00:03:01]} {[%emt 00:00:03]} c5 {[%clk 00:03:03]}
{[%emt 00:00:03]} 3. dxc5 {[%clk 00:03:00]} {[%emt 00:00:02]} Qa5+ {[%clk
00:03:04]} {[%emt 00:00:01]} 4. Nc3 {[%clk 00:03:00]} {[%emt 00:00:03]} Qxc5
{[%clk 00:03:05]} 5. Be3 {[%clk 00:03:00]} Qa5 {[%clk 00:03:07]} 6. Nf3 {[%clk
00:03:00]} {[%emt 00:00:02]} Nf6 {[%clk 00:03:07]} {[%emt 00:00:02]} 7. Bd3
{[%clk 00:02:59]} {[%emt 00:00:04]} g6 {[%clk 00:03:07]} {[%emt 00:00:01]} 8.
O-O {[%clk 00:02:59]} {[%emt 00:00:02]} Bg7 {[%clk 00:03:08]} {[%emt 00:00:02]}
9. Qe2 {[%clk 00:02:46]} {[%emt 00:00:15]} O-O {[%clk 00:03:04]} {[%emt
00:00:06]} 10. a3 {[%clk 00:02:44]} {[%emt 00:00:04]} Nc6 {[%clk 00:03:00]}
{[%emt 00:00:06]} 11. b4 {[%clk 00:02:32]} {[%emt 00:00:14]} Qd8 {[%clk
00:02:52]} {[%emt 00:00:10]} 12. Rab1 {[%clk 00:02:16]} {[%emt 00:00:19]} Bg4
{[%clk 00:02:47]} {[%emt 00:00:07]} 13. Nd5 {[%clk 00:02:09]} {[%emt 00:00:08]}
Nxd5 {[%clk 00:02:31]} {[%emt 00:00:19]} 14. exd5 {[%clk 00:02:10]} Ne5 {[%clk
00:02:32]} 15. c4 {[%clk 00:01:59]} {[%emt 00:00:10]} Rc8 {[%clk 00:02:33]}
{[%emt 00:00:04]} 16. Rbc1 {[%clk 00:01:51]} {[%emt 00:00:10]} Nxf3+ {[%clk
00:02:32]} {[%emt 00:00:02]} 17. gxf3 {[%clk 00:01:51]} {[%emt 00:00:02]} Bh5
{[%clk 00:02:34]} {[%emt 00:00:01]} 18. Bf4 {[%clk 00:01:26]} {[%emt 00:00:26]}
Qd7 {[%clk 00:02:34]} {[%emt 00:00:03]} 19. Bg3 {[%clk 00:01:25]} {[%emt
00:00:03]} Rfe8 {[%clk 00:02:23]} {[%emt 00:00:13]} 20. Rfe1 {[%clk 00:01:06]}
{[%emt 00:00:20]} Bh6 {[%clk 00:02:11]} {[%emt 00:00:15]} 21. Rc2 {[%clk
00:01:01]} {[%emt 00:00:06]} b6 {[%clk 00:01:58]} {[%emt 00:00:15]} 22. c5
{[%clk 00:00:58]} {[%emt 00:00:05]} bxc5 {[%clk 00:01:59]} {[%emt 00:00:02]} 23.
Bb5 {[%clk 00:00:59]} {[%emt 00:00:01]} Qf5 {[%clk 00:01:57]} {[%emt 00:00:04]}
24. Bxe8 {[%clk 00:00:55]} {[%emt 00:00:05]} Rxe8 {[%clk 00:01:46]} {[%emt
00:00:13]} 25. bxc5 {[%clk 00:00:48]} {[%emt 00:00:09]} Bxf3 {[%clk 00:01:42]}
{[%emt 00:00:07]} 26. Qc4 {[%clk 00:00:45]} {[%emt 00:00:04]} Bxd5 {[%clk
00:01:26]} {[%emt 00:00:18]} 27. Qa4 {[%clk 00:00:37]} {[%emt 00:00:10]} Qf3
{[%clk 00:01:21]} {[%emt 00:00:08]} 28. Qxe8+ {[%clk 00:00:12]} {[%emt
00:00:26]} Kg7 {[%clk 00:01:23]} 29. Kf1 {[%clk 00:00:08]} {[%emt 00:00:06]}
Bc6 {[%clk 00:01:12]} {[%emt 00:00:13]} 30. Qxe7 {[%clk 00:00:06]} {[%emt
00:00:03]} Bb5+ {[%clk 00:01:14]} 31. Kg1 {[%clk 00:00:05]} {[%emt 00:00:02]}
Bc6 {[%clk 00:01:14]} {[%emt 00:00:02]} 32. Kf1 {[%clk 00:00:05]} {[%emt
00:00:02]} Qh1+ {[%clk 00:01:09]} {[%emt 00:00:08]} 33. Ke2 {[%clk 00:00:06]}
Bb5+ {[%clk 00:01:10]} 34. Kd1 {[%emt 00:00:03]} Qf3+ {[%clk 00:01:10]} 35.
Ree2 {[%emt 00:00:24]} Qd3+ {[%clk 00:00:54]} 36. Ke1 {[%clk 00:00:05]} {[%emt
00:00:04]} Qxa3 {[%clk 00:00:50]} {[%emt 00:00:06]} 37. Qxd6 {[%clk 00:00:03]}
{[%emt 00:00:04]} Qa1+ {[%clk 00:00:50]} {[%emt 00:00:02]} 38. Rc1 {[%clk
00:00:03]} {[%emt 00:00:02]} Qxc1+ {[%clk 00:00:51]} {[%emt 00:00:01]} 39. Qd1
{[%clk 00:00:03]} {[%emt 00:00:02]} Qc3+ {[%clk 00:00:47]} {[%emt 00:00:06]} 40.
Kf1 {[%emt 00:00:01]} Qxc5 {[%clk 00:00:45]} {[%emt 00:00:03]} 41. Be5+ {[%clk
00:00:05]} f6 {[%clk 00:00:44]} {[%emt 00:00:03]} 42. Qd8 {[%clk 00:00:04]}
{[%emt 00:00:03]} Bxe2+ {[%clk 00:00:43]} {[%emt 00:00:03]} 43. Kxe2 {[%emt
00:00:03]} Qxe5+ {[%clk 00:00:44]} 44. Kf1 {[%clk 00:00:06]} {[%emt 00:00:01]}
Qb5+ {[%clk 00:00:37]} {[%emt 00:00:09]} 45. Kg1 {[%clk 00:00:05]} {[%emt
00:00:08]} Qb7 {[%clk 00:00:34]} {[%emt 00:00:04]} 46. Qd6 {[%clk 00:00:04]}
{[%emt 00:00:03]} a5 {[%clk 00:00:32]} {[%emt 00:00:04]} 47. Qc5 {[%clk
00:00:03]} {[%emt 00:00:02]} a4 {[%clk 00:00:31]} {[%emt 00:00:04]} 48. Qc4
{[%clk 00:00:03]} {[%emt 00:00:02]} a3 {[%clk 00:00:31]} {[%emt 00:00:01]} 49.
Qa2 {[%clk 00:00:03]} {[%emt 00:00:02]} Bf4 {[%clk 00:00:21]} {[%emt 00:00:12]}
50. Qe6 {[%clk 00:00:03]} {[%emt 00:00:03]} Be5 {[%clk 00:00:17]} {[%emt
00:00:06]} 51. Kf1 {[%clk 00:00:03]} {[%emt 00:00:02]} Qb1+ {[%clk 00:00:14]}
{[%emt 00:00:05]} 52. Kg2 {[%clk 00:00:04]} Qe4+ {[%clk 00:00:14]} {[%emt
00:00:03]} 53. Kf1 {[%clk 00:00:03]} {[%emt 00:00:03]} Qd3+ {[%clk 00:00:13]}
{[%emt 00:00:03]} 54. Kg2 {[%clk 00:00:04]} {[%emt 00:00:01]} Qe4+ {[%clk
00:00:08]} {[%emt 00:00:06]} 55. Kf1 {[%clk 00:00:05]} h5 {[%clk 00:00:06]}
{[%emt 00:00:04]} 56. Qe7+ {[%clk 00:00:06]} Kh6 {[%clk 00:00:07]} 57. Qf8+
{[%clk 00:00:07]} Kg5 {[%clk 00:00:09]} 58. h4+ {[%clk 00:00:06]} {[%emt
00:00:02]} Qxh4 {[%clk 00:00:09]} {[%emt 00:00:02]} 59. Qxa3 {[%clk 00:00:05]}
{[%emt 00:00:03]} Qc4+ {[%clk 00:00:11]} {[%emt 00:00:02]} 60. Kg2 {[%clk
00:00:05]} {[%emt 00:00:01]} Qe4+ {[%clk 00:00:12]} {[%emt 00:00:01]} 61. Kf1
{[%clk 00:00:06]} h4 {[%clk 00:00:13]} 62. Qe3+ {[%clk 00:00:05]} {[%emt
00:00:03]} Qxe3 {[%clk 00:00:14]} {[%emt 00:00:01]} 63. fxe3 {[%clk 00:00:06]}
Kg4 {[%clk 00:00:15]} {[%emt 00:00:01]} 64. Kg2 {[%clk 00:00:06]} g5 {[%clk
00:00:15]} {[%emt 00:00:02]} 65. Kh1 {[%clk 00:00:06]} {[%emt 00:00:02]} Kf3
{[%clk 00:00:17]} 66. Kg1 {[%clk 00:00:07]} {[%emt 00:00:02]} g4 {[%clk
00:00:17]} {[%emt 00:00:02]} 67. Kh1 {[%clk 00:00:08]} g3 {[%clk 00:00:18]} 68.
Kg1 {[%clk 00:00:09]} {[%emt 00:00:02]} h3 {[%clk 00:00:20]} 69. Kh1 {[%clk
00:00:09]} {[%emt 00:00:02]} Kxe3 {[%clk 00:00:20]} {[%emt 00:00:03]} 70. Kg1
{[%clk 00:00:09]} g2 {[%clk 00:00:20]} {[%emt 00:00:02]} 1/2-1/2

[ePGN "0.1;DGT LiveChess/2.2.7"]

[Event "Nordstansblixten 2025"]
[Site "Nordstan, Göteborg, Sweden"]
[Date "2025.05.10"]
[Round "1.4"]
[White "Buzleta, Patrik"]
[Black "Vijayshankar, Kathir Nilavan"]
[Result "*"]
[TimeControl "3 minutes + 2 seconds per move from move one"]
[WhiteElo "1794"]
[BlackElo "1430"]

1. Nf3 {[%clk 00:03:03]} {[%emt 00:00:01]} g6 {[%clk 00:03:03]} {[%emt
00:00:01]} 2. Nc3 {[%clk 00:03:04]} {[%emt 00:00:01]} Bg7 {[%clk 00:03:04]} 3.
b3 {[%clk 00:03:03]} {[%emt 00:00:03]} d6 {[%clk 00:03:05]} 4. Bb2 {[%clk
00:03:04]} c5 {[%clk 00:03:05]} {[%emt 00:00:02]} 5. Qc1 {[%clk 00:03:05]} Bg4
{[%clk 00:03:05]} {[%emt 00:00:02]} 6. Ng1 {[%clk 00:02:59]} {[%emt 00:00:08]}
Nc6 {[%clk 00:03:02]} {[%emt 00:00:05]} 7. h3 {[%clk 00:03:00]} Bf5 {[%clk
00:02:59]} {[%emt 00:00:05]} 8. Nf3 {[%clk 00:02:48]} {[%emt 00:00:14]} Nf6
{[%clk 00:02:59]} {[%emt 00:00:02]} 9. g4 {[%clk 00:02:49]} Be4 {[%clk
00:02:53]} {[%emt 00:00:08]} 10. Nxe4 {[%clk 00:02:45]} {[%emt 00:00:05]} Nxe4
{[%clk 00:02:37]} {[%emt 00:00:19]} 11. Bxg7 {[%clk 00:02:46]} Rg8 {[%clk
00:02:38]} {[%emt 00:00:02]} 12. Bb2 {[%clk 00:02:43]} {[%emt 00:00:04]} Qa5
{[%clk 00:02:33]} {[%emt 00:00:08]} 13. Bg2 {[%clk 00:02:30]} {[%emt 00:00:13]}
Qb6 {[%clk 00:02:26]} {[%emt 00:00:10]} 14. O-O {[%clk 00:02:01]} {[%emt
00:00:31]} Nd4 {[%clk 00:02:20]} {[%emt 00:00:09]} 15. Nxd4 {[%clk 00:01:55]}
{[%emt 00:00:09]} Nxf2 {[%clk 00:02:02]} {[%emt 00:00:19]} 16. Rxf2 {[%clk
00:01:42]} {[%emt 00:00:14]} cxd4 {[%clk 00:02:03]} {[%emt 00:00:02]} 17. d3
{[%clk 00:01:41]} {[%emt 00:00:03]} Rc8 {[%clk 00:02:00]} {[%emt 00:00:05]} 18.
Qf4 {[%clk 00:01:37]} {[%emt 00:00:04]} Rf8 {[%clk 00:01:57]} {[%emt 00:00:06]}
19. Rc1 {[%clk 00:01:36]} {[%emt 00:00:03]} e5 {[%clk 00:01:54]} {[%emt
00:00:05]} 20. Qe4 {[%clk 00:01:35]} {[%emt 00:00:02]} Qa6 {[%clk 00:01:49]}
{[%emt 00:00:08]} 21. a3 {[%clk 00:01:31]} {[%emt 00:00:06]} b5 {[%clk
00:01:36]} {[%emt 00:00:14]} 22. Qb7 {[%clk 00:01:05]} {[%emt 00:00:28]} Qxb7
{[%clk 00:01:33]} {[%emt 00:00:05]} 23. Bxb7 {[%clk 00:01:07]} {[%emt
00:00:01]} Rb8 {[%clk 00:01:33]} {[%emt 00:00:02]} 24. Bc6+ {[%clk 00:01:07]}
{[%emt 00:00:02]} Ke7 {[%clk 00:01:34]} {[%emt 00:00:02]} 25. g5 {[%clk
00:00:51]} {[%emt 00:00:17]} b4 {[%clk 00:01:29]} {[%emt 00:00:07]} 26. a4
{[%clk 00:00:53]} f5 {[%clk 00:01:26]} {[%emt 00:00:05]} 27. gxf6+ {[%clk
00:00:53]} {[%emt 00:00:01]} Rxf6 {[%clk 00:01:25]} {[%emt 00:00:03]} 28. Rxf6
{[%clk 00:00:54]} Kxf6 {[%clk 00:01:25]} 29. Rd1 {[%clk 00:00:56]} Kg5 {[%clk
00:01:24]} {[%emt 00:00:05]} 30. Rf1 {[%clk 00:00:54]} Kh4 {[%clk 00:01:24]}
{[%emt 00:00:07]} 31. Kg2 {[%clk 00:00:52]} Rc8 {[%clk 00:01:24]} {[%emt
00:00:07]} 32. Bc1 {[%clk 00:00:26]} *

[ePGN "0.1;DGT LiveChess/2.2.7"]

[Event "Nordstansblixten 2025"]
[Site "Nordstan, Göteborg, Sweden"]
[Date "2025.05.10"]
[Round "1.6"]
[White "Olivius, Sten"]
[Black "Dasari, Joel"]
[Result "1-0"]
[TimeControl "3 minutes + 2 seconds per move from move one"]
[WhiteElo "1678"]
[BlackElo "1511"]

1. e4 {[%clk 00:03:03]} {[%emt 00:00:01]} e5 {[%clk 00:03:03]} {[%emt
00:00:01]} 2. Nf3 {[%clk 00:03:03]} {[%emt 00:00:02]} Nc6 {[%clk 00:02:59]}
{[%emt 00:00:06]} 3. Nc3 {[%clk 00:03:02]} {[%emt 00:00:02]} Nf6 {[%clk
00:02:59]} {[%emt 00:00:02]} 4. Bb5 {[%clk 00:03:01]} {[%emt 00:00:03]} Bc5
{[%clk 00:02:43]} {[%emt 00:00:18]} 5. Nxe5 {[%clk 00:02:48]} {[%emt 00:00:15]}
Nxe5 {[%clk 00:02:41]} {[%emt 00:00:04]} 6. d4 {[%clk 00:02:49]} {[%emt
00:00:01]} Bxd4 {[%clk 00:02:30]} {[%emt 00:00:13]} 7. Qxd4 {[%clk 00:02:50]}
{[%emt 00:00:01]} Nc6 {[%clk 00:02:15]} {[%emt 00:00:17]} 8. Bxc6 {[%clk
00:02:44]} {[%emt 00:00:07]} bxc6 {[%clk 00:02:15]} {[%emt 00:00:02]} 9. e5
{[%clk 00:02:40]} {[%emt 00:00:06]} Ng8 {[%clk 00:01:52]} {[%emt 00:00:25]} 10.
O-O {[%clk 00:02:25]} {[%emt 00:00:16]} d6 {[%clk 00:01:23]} {[%emt 00:00:32]}
11. exd6 {[%clk 00:02:22]} {[%emt 00:00:05]} Qxd6 {[%clk 00:01:22]} {[%emt
00:00:03]} 12. Qxg7 {[%clk 00:02:20]} {[%emt 00:00:04]} Qf6 {[%clk 00:01:13]}
{[%emt 00:00:11]} 13. Re1+ {[%clk 00:02:20]} {[%emt 00:00:03]} Be6 {[%clk
00:01:11]} {[%emt 00:00:03]} 14. Bh6 {[%clk 00:01:52]} {[%emt 00:00:31]} O-O-O
{[%clk 00:00:27]} {[%emt 00:00:46]} 15. Qxf6 {[%clk 00:01:50]} {[%emt
00:00:04]} Nxf6 {[%clk 00:00:27]} {[%emt 00:00:02]} 16. Bg7 {[%clk 00:01:50]}
{[%emt 00:00:01]} Rhg8 {[%clk 00:00:22]} {[%emt 00:00:08]} 17. Bxf6 {[%clk
00:01:51]} Rd2 {[%clk 00:00:18]} {[%emt 00:00:06]} 18. Re2 {[%clk 00:01:28]}
{[%emt 00:00:25]} Rxe2 {[%clk 00:00:10]} {[%emt 00:00:10]} 19. Nxe2 {[%clk
00:01:28]} {[%emt 00:00:01]} Bd5 {[%clk 00:00:11]} 20. Ng3 {[%clk 00:01:18]}
{[%emt 00:00:11]} h5 {[%clk 00:00:03]} {[%emt 00:00:11]} 21. h4 {[%clk
00:01:18]} {[%emt 00:00:02]} Kb7 {[%clk 00:00:05]} 22. b3 {[%clk 00:01:11]}
{[%emt 00:00:08]} a6 {[%clk 00:00:06]} {[%emt 00:00:02]} 23. c4 {[%clk
00:01:12]} Be6 {[%clk 00:00:07]} {[%emt 00:00:01]} 24. Nxh5 {[%clk 00:01:04]}
{[%emt 00:00:10]} Bg4 {[%clk 00:00:05]} {[%emt 00:00:03]} 25. Ng3 {[%clk
00:00:57]} {[%emt 00:00:09]} Rg6 {[%clk 00:00:06]} {[%emt 00:00:02]} 26. Bg5
{[%clk 00:00:54]} {[%emt 00:00:04]} Be6 {[%clk 00:00:06]} {[%emt 00:00:02]} 27.
Rd1 {[%clk 00:00:52]} {[%emt 00:00:03]} a5 {[%clk 00:00:08]} {[%emt 00:00:02]}
28. f4 {[%clk 00:00:47]} {[%emt 00:00:06]} Rg7 {[%clk 00:00:05]} {[%emt
00:00:05]} 29. Kf2 {[%clk 00:00:46]} {[%emt 00:00:03]} Kb6 {[%clk 00:00:06]}
{[%emt 00:00:01]} 30. Kf3 {[%clk 00:00:42]} {[%emt 00:00:06]} Kc5 {[%clk
00:00:05]} {[%emt 00:00:04]} 31. Be7+ {[%clk 00:00:41]} {[%emt 00:00:02]} Kb6
{[%clk 00:00:05]} {[%emt 00:00:02]} 32. Ne4 {[%clk 00:00:39]} {[%emt 00:00:04]}
f5 {[%clk 00:00:04]} {[%emt 00:00:03]} 33. Bc5+ {[%clk 00:00:35]} {[%emt
00:00:06]} Kb7 {[%clk 00:00:04]} {[%emt 00:00:02]} 34. Ng5 {[%clk 00:00:35]}
{[%emt 00:00:02]} Bf7 {[%clk 00:00:03]} {[%emt 00:00:03]} 35. Nxf7 {[%clk
00:00:31]} {[%emt 00:00:06]} Rxf7 {[%clk 00:00:05]} 36. Re1 {[%clk 00:00:30]}
{[%emt 00:00:02]} Ka6 {[%clk 00:00:04]} {[%emt 00:00:03]} 37. Re7 {[%clk
00:00:30]} {[%emt 00:00:01]} Rxe7 {[%clk 00:00:05]} {[%emt 00:00:02]} 38. Bxe7
{[%clk 00:00:31]} {[%emt 00:00:01]} c5 {[%clk 00:00:05]} {[%emt 00:00:02]} 39.
h5 {[%clk 00:00:31]} {[%emt 00:00:03]} c6 {[%clk 00:00:06]} 40. h6 {[%clk
00:00:31]} {[%emt 00:00:01]} Kb7 {[%clk 00:00:07]} {[%emt 00:00:01]} 41. h7
{[%clk 00:00:31]} {[%emt 00:00:01]} Ka6 {[%clk 00:00:09]} 42. h8=Q {[%clk
00:00:31]} {[%emt 00:00:03]} 1-0

[ePGN "0.1;DGT LiveChess/2.2.7"]

[Event "Nordstansblixten 2025"]
[Site "Nordstan, Göteborg, Sweden"]
[Date "2025.05.10"]
[Round "1.8"]
[White "Bergdahl, Martin"]
[Black "Munuswamy, Shivakumar"]
[Result "1-0"]
[TimeControl "3 minutes + 2 seconds per move from move one"]
[WhiteElo "1931"]
[BlackElo "1650"]

1. e4 {[%clk 00:03:03]} d5 {[%clk 00:03:02]} {[%emt 00:00:02]} 2. exd5 {[%clk
00:03:03]} {[%emt 00:00:02]} Nf6 {[%clk 00:03:02]} {[%emt 00:00:02]} 3. Nc3
{[%clk 00:03:04]} Nxd5 {[%clk 00:02:57]} {[%emt 00:00:07]} 4. Bc4 {[%clk
00:03:06]} Nxc3 {[%clk 00:02:48]} {[%emt 00:00:12]} 5. bxc3 {[%clk 00:03:06]}
Bf5 {[%clk 00:02:43]} {[%emt 00:00:07]} 6. Qf3 {[%clk 00:02:51]} {[%emt
00:00:17]} Bg6 {[%clk 00:02:40]} {[%emt 00:00:05]} 7. Qxb7 {[%clk 00:02:45]}
{[%emt 00:00:08]} Nd7 {[%clk 00:02:38]} {[%emt 00:00:04]} 8. Bb5 {[%clk
00:02:12]} {[%emt 00:00:35]} Rb8 {[%clk 00:02:28]} {[%emt 00:00:12]} 9. Bxd7+
{[%clk 00:02:03]} {[%emt 00:00:11]} Kxd7 {[%clk 00:02:27]} {[%emt 00:00:03]} 10.
Qd5+ {[%clk 00:01:55]} {[%emt 00:00:10]} Kc8 {[%clk 00:02:24]} {[%emt
00:00:05]} 11. Qxd8+ {[%clk 00:01:55]} {[%emt 00:00:01]} Kxd8 {[%clk 00:02:25]}
{[%emt 00:00:02]} 12. d3 {[%clk 00:01:00]} {[%emt 00:00:57]} e5 {[%emt
00:00:10]} 13. Nf3 {[%clk 00:00:59]} {[%emt 00:00:01]} f6 {[%clk 00:02:20]}
{[%emt 00:00:02]} 14. Be3 {[%clk 00:00:55]} {[%emt 00:00:06]} Rb7 {[%clk
00:02:17]} {[%emt 00:00:05]} 15. O-O {[%clk 00:00:52]} {[%emt 00:00:05]} Ba3
{[%clk 00:02:11]} {[%emt 00:00:08]} 16. Rab1 {[%clk 00:00:53]} Rxb1 {[%clk
00:02:10]} {[%emt 00:00:03]} 17. Rxb1 {[%clk 00:00:55]} Kd7 {[%clk 00:01:59]}
{[%emt 00:00:14]} 18. Bxa7 {[%clk 00:00:47]} {[%emt 00:00:10]} Ra8 {[%clk
00:01:57]} {[%emt 00:00:04]} 19. Be3 {[%clk 00:00:46]} {[%emt 00:00:02]} e4
{[%clk 00:01:53]} {[%emt 00:00:06]} 20. dxe4 {[%clk 00:00:46]} {[%emt
00:00:03]} Bxe4 {[%clk 00:01:52]} {[%emt 00:00:03]} 21. Ne1 {[%clk 00:00:24]}
{[%emt 00:00:24]} Bd6 {[%clk 00:01:48]} {[%emt 00:00:05]} 22. Rb2 {[%clk
00:00:21]} {[%emt 00:00:06]} Ra3 {[%clk 00:01:40]} {[%emt 00:00:09]} 23. f3
{[%clk 00:00:16]} {[%emt 00:00:06]} Bd5 {[%clk 00:01:37]} {[%emt 00:00:06]} 24.
Bd2 {[%clk 00:00:10]} {[%emt 00:00:08]} Ra6 {[%clk 00:01:31]} {[%emt 00:00:07]}
25. Nd3 {[%clk 00:00:11]} {[%emt 00:00:02]} Rxa2 {[%clk 00:01:25]} {[%emt
00:00:08]} 26. Rxa2 {[%clk 00:00:12]} Bxa2 {[%clk 00:01:25]} {[%emt 00:00:03]}
27. Nb4 {[%clk 00:00:11]} {[%emt 00:00:02]} Bb1 {[%clk 00:01:23]} {[%emt
00:00:04]} 28. Kf2 {[%clk 00:00:05]} {[%emt 00:00:09]} Bxb4 {[%clk 00:01:21]}
29. cxb4 {[%clk 00:00:06]} Bxc2 {[%clk 00:01:20]} {[%emt 00:00:04]} 30. Ke3
{[%clk 00:00:08]} Kd6 {[%clk 00:01:19]} {[%emt 00:00:03]} 31. Kd4 {[%clk
00:00:09]} Kc6 {[%clk 00:01:19]} {[%emt 00:00:02]} 32. Kc4 {[%clk 00:00:09]}
{[%emt 00:00:02]} Ba4 {[%clk 00:01:16]} {[%emt 00:00:05]} 33. Bf4 {[%clk
00:00:10]} Bb5+ {[%clk 00:01:16]} {[%emt 00:00:03]} 34. Kd4 {[%clk 00:00:12]}
Bf1 {[%clk 00:01:14]} {[%emt 00:00:03]} 35. g3 {[%clk 00:00:10]} {[%emt
00:00:04]} Kb6 {[%clk 00:01:14]} {[%emt 00:00:03]} 36. Bd2 {[%clk 00:00:07]}
{[%emt 00:00:05]} Ba6 {[%clk 00:01:13]} {[%emt 00:00:03]} 37. Kd5 {[%clk
00:00:05]} {[%emt 00:00:03]} c6+ {[%clk 00:01:14]} {[%emt 00:00:02]} 38. Ke6
{[%clk 00:00:07]} Be2 {[%clk 00:01:10]} {[%emt 00:00:05]} 39. f4 {[%clk
00:00:08]} c5 {[%clk 00:01:06]} {[%emt 00:00:06]} 40. Be3 {[%clk 00:00:08]}
{[%emt 00:00:02]} Kb5 {[%clk 00:01:06]} {[%emt 00:00:02]} 41. Bxc5 {[%clk
00:00:09]} Bh5 {[%clk 00:01:01]} {[%emt 00:00:07]} 42. Bf8 {[%clk 00:00:07]}
{[%emt 00:00:04]} g6 {[%clk 00:00:59]} {[%emt 00:00:04]} 43. Kxf6 {[%clk
00:00:07]} {[%emt 00:00:02]} Kc4 {[%clk 00:00:57]} {[%emt 00:00:03]} 44. Kg7
{[%clk 00:00:07]} {[%emt 00:00:02]} Kd4 {[%clk 00:00:53]} {[%emt 00:00:06]} 45.
Kxh7 {[%clk 00:00:08]} {[%emt 00:00:02]} Ke4 {[%clk 00:00:53]} {[%emt
00:00:01]} 46. b5 {[%clk 00:00:09]} Kf3 {[%clk 00:00:52]} {[%emt 00:00:03]} 47.
b6 {[%clk 00:00:10]} {[%emt 00:00:02]} Kg2 {[%clk 00:00:49]} {[%emt 00:00:04]}
48. b7 {[%clk 00:00:12]} Bf3 {[%clk 00:00:45]} {[%emt 00:00:07]} 49. b8=Q
{[%emt 00:00:03]} Kxh2 {[%clk 00:00:43]} {[%emt 00:00:02]} 50. f5 {[%clk
00:00:13]} {[%emt 00:00:02]} gxf5 {[%clk 00:00:41]} {[%emt 00:00:04]} 51. g4+
{[%clk 00:00:14]} Bxg4 {[%clk 00:00:40]} {[%emt 00:00:04]} 1-0

[ePGN "0.1;DGT LiveChess/2.2.7"]